bitfinex/quotes_BTCUSD_20240620
["timestamp","ask_amount","ask_price","bid_price","bid_amount"]
[1718871664067,0.00086,65908.0,65907.0,0.31555031]
[1718871664277,0.05936,65908.0,65907.0,0.47822289]
[1718871664467,0.05936,65908.0,65907.0,0.49822289]
[1718871664692,1.03036,65908.0,65907.0,0.49822289]
[1718871664909,1.03036,65908.0,65907.0,0.48811143]
[1718871665281,0.97186,65908.0,65907.0,0.49822289]
[1718871665494,0.62336,65908.0,65907.0,0.47822289]
[1718871665700,0.62336,65908.0,65907.0,0.49822289]
[1718871666128,0.6992,65908.0,65907.0,0.47822289]
[1718871666329,0.7992,65908.0,65907.0,0.47822289]
[1718871666656,0.7992,65908.0,65907.0,0.47922289]
[1718871666864,0.7992,65908.0,65907.0,0.46911143]
[1718871667041,0.7992,65908.0,65907.0,0.47822289]
[1718871667270,0.8032,65908.0,65907.0,0.47922289]
[1718871667441,0.8032,65908.0,65907.0,0.48622289]
[1718871667651,0.8032,65908.0,65907.0,0.50622289]
[1718871667785,0.8032,65908.0,65907.0,0.47922289]
[1718871667981,0.8032,65908.0,65907.0,0.50822289]
[1718871668187,0.1807,65908.0,65907.0,0.56704518]
[1718871668408,0.0807,65908.0,65907.0,0.56704518]
[1718871669775,0.0807,65908.0,65907.0,0.06882229]
[1718871670009,0.0807,65908.0,65907.0,0.02707644]
[1718871670821,0.0807,65908.0,65907.0,0.01951644]
[1718871671531,0.0807,65908.0,65907.0,0.17207756]
[1718871672082,0.03961278,65921.0,65913.0,0.00244]
[1718871672284,0.0585,65914.0,65913.0,0.00244]
[1718871672484,0.0585,65914.0,65913.0,0.01151182]
[1718871672689,0.0585,65914.0,65913.0,0.17754]
[1718871672905,0.0585,65914.0,65913.0,0.42744374]
[1718871673530,0.13434,65914.0,65913.0,0.42744374]
[1718871673748,0.07584,65914.0,65913.0,0.42744374]
[1718871674357,0.07584,65914.0,65913.0,0.42844374]
[1718871674561,0.1,65917.0,65915.0,0.00244]
[1718871674805,0.0585,65918.0,65915.0,0.00303374]
[1718871674959,0.1,65922.0,65916.0,0.16405965]
[1718871675132,0.0585,65920.0,65916.0,0.16405965]
[1718871675336,0.1,65922.0,65918.0,0.3741]
[1718871675539,0.0585,65919.0,65918.0,0.3741]
[1718871675789,0.0585,65919.0,65918.0,0.42979916]
[1718871675990,0.1,65921.0,65918.0,0.42979916]
[1718871676220,0.1,65921.0,65918.0,0.58236028]
[1718871676623,0.0585,65920.0,65918.0,0.58236028]
[1718871676829,0.0585,65920.0,65918.0,0.58480028]
[1718871677209,0.0585,65920.0,65918.0,0.52910112]
[1718871677534,0.0585,65920.0,65919.0,0.011493]
[1718871677953,0.1585,65921.0,65920.0,0.00244]
[1718871678164,0.00977833,65920.0,65919.0,0.009053]
[1718871678425,0.00977833,65920.0,65908.0,0.00244]
[1718871678426,0.00977833,65917.0,65908.0,0.3921]
[1718871678656,0.00977833,65917.0,65909.0,0.26055512]
[1718871678860,0.1,65919.0,65909.0,0.26055512]
[1718871678861,0.0585,65910.0,65909.0,0.26055512]
[1718871679080,0.11751362,65919.0,65909.0,0.26299512]
[1718871679081,0.1,65919.0,65909.0,0.26299512]
[1718871679294,0.0585,65913.0,65910.0,0.13404951]
[1718871679498,0.1,65919.0,65910.0,0.28661063]
[1718871679707,0.0585,65912.0,65910.0,0.28661063]
[1718871679924,0.0585,65912.0,65911.0,0.07291873]
[1718871680334,0.0585,65912.0,65911.0,0.00244]
[1718871680779,0.0585,65912.0,65910.0,0.15500112]
[1718871680985,0.0585,65912.0,65911.0,0.00244]
[1718871681575,0.0585,65912.0,65911.0,0.01244]
[1718871682000,0.0595,65912.0,65911.0,0.02244]
[1718871682289,0.0595,65912.0,65911.0,0.08355011]
[1718871683171,0.0595,65912.0,65911.0,0.08658399]
[1718871683583,0.0595,65912.0,65911.0,0.02244]
[1718871684844,0.0595,65912.0,65911.0,0.02]
[1718871685224,0.001,65912.0,65911.0,0.17256112]
[1718871685429,0.001,65912.0,65911.0,0.17350712]
[1718871686259,0.001,65912.0,65911.0,0.25896]
[1718871687166,0.001,65912.0,65911.0,0.2614]
[1718871687342,0.001,65912.0,65911.0,0.17594712]
[1718871687551,0.04141185,65915.0,65911.0,0.17594712]
[1718871687760,0.03159328,65915.0,65913.0,0.00244]
[1718871688150,0.10743328,65915.0,65914.0,0.00931289]
[1718871688356,0.20743328,65915.0,65914.0,0.00931289]
[1718871688602,0.20743328,65915.0,65914.0,0.03546706]
[1718871689154,0.20843328,65915.0,65914.0,0.03790706]
[1718871689281,0.17684,65915.0,65914.0,0.56926818]
[1718871689464,0.17584,65915.0,65914.0,0.56926818]
[1718871690326,0.1,65915.0,65914.0,0.56926818]
[1718871690594,0.001,65915.0,65914.0,0.83746818]
[1718871690819,0.001,65915.0,65914.0,0.88746818]
[1718871691262,0.001,65915.0,65914.0,0.93746818]
[1718871691469,0.001,65915.0,65914.0,1.72503018]
[1718871692091,0.001,65915.0,65914.0,1.71903018]
[1718871692521,0.001,65915.0,65914.0,1.73303018]
[1718871692703,0.001,65915.0,65914.0,2.03645518]
[1718871692918,0.00086,65921.0,65920.0,1.123135]
[1718871693120,0.00086,65921.0,65920.0,1.8641962]
[1718871693463,0.0767,65921.0,65920.0,1.8641962]
[1718871694077,0.0767,65921.0,65920.0,1.8781962]
[1718871694620,0.00186,65921.0,65920.0,1.8921962]
[1718871695047,0.00186,65921.0,65920.0,1.1337012]
[1718871696415,0.00186,65921.0,65920.0,1.2854002]
[1718871697797,0.00186,65921.0,65920.0,1.5887982]
[1718871698094,0.00186,65921.0,65920.0,1.0752012]
[1718871698296,0.00186,65921.0,65920.0,1.5887982]
[1718871698877,0.00186,65921.0,65920.0,1.8921962]
[1718871699486,0.00178557,65921.0,65920.0,1.8336962]
[1718871700646,0.00178557,65921.0,65920.0,1.8196962]
[1718871701205,0.00078557,65921.0,65920.0,1.8196962]
[1718871701410,0.00078557,65921.0,65920.0,1.8336962]
[1718871703421,0.00078557,65921.0,65920.0,1.8397742]
[1718871705958,0.00078557,65921.0,65920.0,2.1431722]
[1718871706170,0.00078557,65921.0,65920.0,2.17625264]
[1718871709162,0.00078557,65921.0,65920.0,2.22625264]
[1718871710464,0.00078557,65921.0,65920.0,2.21225264]
[1718871710665,0.00078557,65921.0,65920.0,2.19825264]
[1718871710807,0.00078557,65921.0,65920.0,2.21225264]
[1718871711014,0.00078557,65921.0,65920.0,0.37764614]
[1718871711288,0.00078557,65921.0,65920.0,0.3524877]
[1718871711422,0.00078557,65921.0,65920.0,0.4524877]
[1718871711617,0.00078557,65921.0,65920.0,0.55198946]
[1718871711844,0.00078557,65921.0,65920.0,0.53798946]
[1718871712064,0.00078557,65921.0,65920.0,0.65173728]
[1718871712268,0.00078557,65921.0,65920.0,0.66573728]
[1718871712892,0.00078557,65921.0,65920.0,0.65173728]
[1718871713118,0.00078557,65921.0,65920.0,0.67473728]
[1718871713351,0.00078557,65921.0,65920.0,0.84403728]
[1718871713915,0.00078557,65921.0,65920.0,0.85803728]
[1718871714633,0.00078557,65921.0,65920.0,0.87203728]
[1718871715220,0.00078557,65921.0,65920.0,0.85803728]
[1718871715423,0.00078557,65921.0,65920.0,0.87203728]
[1718871715830,0.00078557,65921.0,65920.0,1.09053728]
[1718871716319,0.00078557,65921.0,65920.0,1.24223628]
[1718871716551,0.00078557,65921.0,65920.0,1.84903228]
[1718871717394,0.00078557,65921.0,65920.0,1.54563428]
[1718871718462,0.00078557,65921.0,65920.0,1.84997828]
[1718871723443,0.00078557,65921.0,65920.0,1.54658028]
[1718871723645,0.00078557,65921.0,65920.0,1.84997828]
[1718871727550,0.00078557,65921.0,65920.0,1.87681062]
[1718871727772,0.00078557,65921.0,65920.0,1.84997828]
[1718871730924,0.00078557,65921.0,65920.0,1.24318228]
[1718871731528,0.00078557,65921.0,65920.0,1.09148328]
[1718871731683,0.00078557,65921.0,65920.0,0.70368328]
[1718871731887,0.00078557,65921.0,65920.0,0.85538228]
[1718871732549,0.00078557,65921.0,65920.0,1.15878028]
[1718871732958,0.00086,65926.0,65925.0,0.37141443]
[1718871733135,0.00086,65926.0,65925.0,0.67032527]
[1718871734343,0.00086,65926.0,65925.0,0.68432527]
[1718871734549,0.00086,65926.0,65925.0,0.69832527]
[1718871734787,0.39726,65926.0,65925.0,0.54632527]
[1718871734986,0.39726,65926.0,65925.0,0.4067703]
[1718871735545,0.39726,65926.0,65925.0,0.3927703]
[1718871735865,0.39726,65926.0,65925.0,0.4067703]
[1718871736066,0.4731,65926.0,65925.0,0.4067703]
[1718871736265,0.4731,65926.0,65925.0,0.3927703]
[1718871736471,0.4731,65926.0,65925.0,0.44734193]
[1718871737106,0.4731,65926.0,65925.0,0.43334193]
[1718871737304,0.4731,65926.0,65925.0,0.44734193]
[1718871737707,0.4731,65926.0,65925.0,0.4405675]
[1718871737910,0.4731,65926.0,65925.0,0.4265675]
[1718871738389,0.4731,65926.0,65925.0,0.4405675]
[1718871738980,0.4731,65926.0,65925.0,0.4545675]
[1718871739377,0.4731,65926.0,65925.0,0.39999587]
[1718871742451,0.46632,65926.0,65925.0,0.39999587]
[1718871742911,0.46632,65926.0,65925.0,0.34999587]
[1718871743114,0.46632,65926.0,65925.0,0.39999587]
[1718871751042,0.46632,65926.0,65925.0,0.50294187]
[1718871751358,0.46632,65926.0,65925.0,0.57179883]
[1718871751922,0.39134,65926.0,65925.0,0.57179883]
[1718871753112,0.00086,65926.0,65925.0,0.57179883]
[1718871755427,0.00086,65926.0,65925.0,0.46979883]
[1718871756693,0.39236,65926.0,65925.0,0.19074187]
[1718871756932,0.4682,65926.0,65925.0,0.19074187]
[1718871757542,0.4682,65926.0,65925.0,0.18394712]
[1718871757766,0.4682,65926.0,65925.0,0.16994712]
[1718871757976,0.4682,65926.0,65925.0,0.16288116]
[1718871758180,0.4682,65926.0,65925.0,0.19088116]
[1718871760370,0.4682,65926.0,65925.0,0.18844116]
[1718871760587,0.4682,65926.0,65925.0,0.19088116]
[1718871760996,0.4682,65926.0,65925.0,0.18844116]
[1718871761203,0.4682,65926.0,65925.0,0.03588004]
[1718871761204,0.5682,65926.0,65925.0,0.03588004]
[1718871761411,0.5682,65926.0,65925.0,0.028946]
[1718871762229,0.49236,65926.0,65925.0,0.028946]
[1718871762407,0.49236,65926.0,65925.0,0.014946]
[1718871762822,0.49236,65926.0,65925.0,0.028946]
[1718871763026,0.49236,65926.0,65925.0,0.014946]
[1718871763228,0.5682,65926.0,65925.0,0.014946]
[1718871764412,0.5682,65926.0,65925.0,0.028946]
[1718871765132,0.68161671,65926.0,65925.0,0.014946]
[1718871765353,0.68161671,65926.0,65925.0,0.16994712]
[1718871765517,0.5682,65926.0,65925.0,0.20133977]
[1718871765721,0.5682,65926.0,65925.0,0.20827838]
[1718871767508,0.49236,65926.0,65925.0,0.20827838]
[1718871768601,0.5682,65926.0,65925.0,0.20827838]
[1718871770822,0.5682,65926.0,65925.0,0.20583838]
[1718871771021,0.5682,65926.0,65925.0,0.18844573]
[1718871771240,0.6266,65926.0,65925.0,0.18844573]
[1718871771572,0.6266,65926.0,65925.0,0.03588461]
[1718871771816,0.65039614,65926.0,65925.0,0.03588461]
[1718871772016,0.65039614,65926.0,65925.0,0.028946]
[1718871772474,0.66017447,65926.0,65925.0,0.028946]
[1718871773456,0.66017447,65926.0,65925.0,0.014946]
[1718871773830,0.66017447,65926.0,65925.0,0.028946]
[1718871774238,0.66017447,65926.0,65925.0,0.000946]
[1718871774669,0.66017447,65926.0,65925.0,0.012946]
[1718871774895,0.66017447,65926.0,65925.0,0.023946]
[1718871775561,0.65039614,65926.0,65925.0,0.012946]
[1718871775786,0.65039614,65926.0,65925.0,0.023946]
[1718871776723,0.66017447,65926.0,65925.0,0.023946]
[1718871777623,0.35887037,65926.0,65925.0,0.023946]
[1718871779603,0.39188436,65926.0,65925.0,0.023946]
[1718871779802,4.64553036,65926.0,65925.0,0.023946]
[1718871780592,4.85073036,65926.0,65925.0,0.023946]
[1718871781964,5.05676106,65926.0,65925.0,0.023946]
[1718871782358,5.20542384,65926.0,65925.0,0.023946]
[1718871782561,5.20542384,65926.0,65925.0,0.012946]
[1718871782939,5.20542384,65926.0,65925.0,0.020946]
[1718871783348,5.20542384,65926.0,65925.0,0.008946]
[1718871783777,5.20542384,65926.0,65925.0,0.018946]
[1718871784143,5.06932624,65926.0,65925.0,0.018946]
[1718871785708,5.0697247,65926.0,65925.0,0.018946]
[1718871786275,5.0697247,65926.0,65925.0,0.010946]
[1718871786944,5.05994637,65926.0,65925.0,0.010946]
[1718871787377,5.0697247,65926.0,65925.0,0.010946]
[1718871787564,5.0697247,65926.0,65925.0,0.000946]
[1718871787844,5.0697247,65926.0,65925.0,0.016946]
[1718871788733,5.05708901,65926.0,65925.0,0.016946]
[1718871788893,5.06962374,65926.0,65925.0,0.016946]
[1718871789498,5.06206374,65926.0,65925.0,0.016946]
[1718871789679,5.06962374,65926.0,65925.0,0.016946]
[1718871790695,5.06961361,65926.0,65925.0,0.016946]
[1718871791273,5.06849866,65926.0,65925.0,0.016946]
[1718871791975,5.05872033,65926.0,65925.0,0.016946]
[1718871792176,5.06849866,65926.0,65925.0,0.016946]
[1718871793689,0.56379034,65926.0,65925.0,0.16950712]
[1718871793916,0.10049614,65926.0,65925.0,0.30312707]
[1718871794120,0.10049614,65926.0,65925.0,0.31009705]
[1718871794987,0.10049614,65926.0,65925.0,0.30109705]
[1718871795205,0.20049614,65926.0,65925.0,0.30109705]
[1718871795408,0.20049614,65926.0,65925.0,0.29409705]
[1718871796128,0.20049614,65926.0,65925.0,0.30109705]
[1718871796282,0.20049614,65926.0,65925.0,0.30209705]
[1718871797008,0.20049614,65926.0,65925.0,0.31609705]
[1718871798509,0.20049614,65926.0,65925.0,0.30809705]
[1718871799075,0.20041655,65926.0,65925.0,0.30809705]
[1718871799667,0.12465614,65926.0,65925.0,0.30809705]
[1718871799883,0.02465614,65926.0,65925.0,0.30809705]
[1718871800091,0.12465614,65926.0,65925.0,0.30809705]
[1718871800962,0.20049614,65926.0,65925.0,0.32209705]
[1718871806726,0.20049614,65926.0,65925.0,0.31965705]
[1718871806938,0.20049614,65926.0,65925.0,0.24337533]
[1718871807138,0.20049614,65926.0,65925.0,0.24581533]
[1718871807346,0.20049614,65926.0,65925.0,0.24337533]
[1718871807559,0.20049614,65926.0,65925.0,0.24581533]
[1718871808108,0.20049614,65926.0,65925.0,0.24337533]
[1718871809871,0.20049614,65926.0,65925.0,0.24581533]
[1718871810039,0.20049614,65926.0,65925.0,0.63761533]
[1718871810457,0.10049614,65926.0,65925.0,0.95801533]
[1718871810726,0.10049614,65926.0,65925.0,1.20970233]
[1718871810727,0.0767,65926.0,65925.0,1.20970233]
[1718871810930,0.0767,65926.0,65925.0,1.23270233]
[1718871812698,0.0767,65926.0,65925.0,1.08101533]
[1718871813094,0.0767,65926.0,65925.0,1.23270233]
[1718871813508,0.0767,65926.0,65925.0,1.08101533]
[1718871814946,0.0767,65926.0,65925.0,1.03101533]
[1718871815153,0.0767,65926.0,65925.0,1.08101533]
[1718871817794,0.0767,65926.0,65925.0,0.1884771]
[1718871818011,0.0767,65926.0,65925.0,0.5794171]
[1718871820499,0.0767,65926.0,65925.0,0.1909171]
[1718871824899,0.0767,65926.0,65925.0,0.15256112]
[1718871825056,0.0767,65926.0,65925.0,0.15812351]
[1718871827260,0.0767,65926.0,65925.0,0.17393586]
[1718871827436,0.0767,65926.0,65925.0,0.15812351]
[1718871832192,0.4549,65926.0,65925.0,0.15812351]
[1718871835408,0.4549,65926.0,65925.0,0.15256112]
[1718871835619,0.4549,65926.0,65917.0,0.16]
[1718871835831,0.05,65915.0,65911.0,0.000946]
[1718871836033,0.05,65914.0,65912.0,0.00557375]
[1718871836239,0.1,65915.0,65912.0,0.00557375]
[1718871836240,0.05,65913.0,65912.0,0.00557375]
[1718871836454,0.1584,65913.0,65912.0,0.00557375]
[1718871836659,0.2584,65913.0,65912.0,0.00557375]
[1718871837580,0.2084,65913.0,65912.0,0.00557375]
[1718871837728,0.37186499,65913.0,65912.0,0.00557375]
[1718871837932,0.32186499,65913.0,65912.0,0.00557375]
[1718871838136,0.2084,65913.0,65912.0,0.00557375]
[1718871838338,0.33424,65913.0,65912.0,0.00557375]
[1718871838710,0.44770499,65913.0,65912.0,0.00557375]
[1718871838918,0.44870499,65913.0,65912.0,0.01357375]
[1718871839161,0.33624,65913.0,65912.0,0.02157375]
[1718871839364,0.33524,65913.0,65912.0,0.01357375]
[1718871839746,0.33424,65913.0,65912.0,0.00557375]
[1718871839949,0.33524,65913.0,65912.0,0.01257375]
[1718871840146,0.33624,65913.0,65912.0,0.02157375]
[1718871840346,0.43824,65913.0,65912.0,0.016]
[1718871840564,0.84415833,65913.0,65912.0,0.016]
[1718871841575,0.84315833,65913.0,65912.0,0.009]
[1718871841830,0.84415833,65913.0,65912.0,0.016]
[1718871845372,0.81415833,65913.0,65912.0,0.016]
[1718871845585,0.92733157,65913.0,65912.0,0.016]
[1718871846329,0.81415833,65913.0,65912.0,0.016]
[1718871846524,0.92733157,65913.0,65912.0,0.016]
[1718871847370,0.81415833,65913.0,65912.0,0.016]
[1718871847576,5.12274482,65913.0,65912.0,0.016]
[1718871851323,5.12274482,65913.0,65912.0,0.016946]
[1718871851731,5.12360482,65913.0,65912.0,0.016946]
[1718871855840,5.42435675,65913.0,65912.0,0.016946]
[1718871856044,5.42196907,65913.0,65912.0,0.016946]
[1718871856568,5.57453019,65913.0,65912.0,0.016946]
[1718871857008,5.59040112,65913.0,65912.0,0.016946]
[1718871857175,5.56938106,65913.0,65912.0,0.016946]
[1718871857397,5.59060648,65913.0,65912.0,0.016946]
[1718871857663,5.63494688,65913.0,65912.0,0.016946]
[1718871857840,5.59060648,65913.0,65912.0,0.016946]
[1718871859166,5.43804536,65913.0,65912.0,0.016946]
[1718871859366,0.51098468,65913.0,65912.0,0.016946]
[1718871859589,0.37945193,65913.0,65912.0,0.016946]
[1718871859817,0.0787,65913.0,65912.0,0.02202044]
[1718871860788,0.0767,65913.0,65912.0,0.00602044]
[1718871860999,0.0777,65913.0,65912.0,0.01702044]
[1718871861419,0.0777,65913.0,65912.0,0.00602044]
[1718871861590,0.0787,65913.0,65912.0,0.02002044]
[1718871861914,0.0644633,65917.0,65912.0,0.05371252]
[1718871862123,0.0584,65915.0,65912.0,0.05371252]
[1718871862749,0.0584,65915.0,65912.0,0.02802044]
[1718871862960,0.102,65914.0,65912.0,0.02802044]
[1718871863311,0.21088205,65914.0,65912.0,0.02002044]
[1718871863737,0.21088205,65914.0,65912.0,0.03302044]
[1718871863925,0.21088205,65914.0,65912.0,0.01902044]
[1718871864121,0.21088205,65914.0,65912.0,0.00602044]
[1718871864366,0.20957986,65914.0,65912.0,0.01602044]
[1718871864567,0.1,65913.0,65912.0,0.01802044]
[1718871864958,0.1,65913.0,65912.0,0.02902044]
[1718871865469,0.1,65913.0,65912.0,0.04898708]
[1718871865647,0.1,65913.0,65912.0,0.03798708]
[1718871866611,0.1,65913.0,65912.0,0.00602044]
[1718871866767,0.1,65913.0,65912.0,0.02002044]
[1718871866951,0.202,65913.0,65912.0,1.014946]
[1718871867157,0.202,65913.0,65912.0,1.013946]
[1718871867402,0.202,65913.0,65912.0,1.00599752]
[1718871867601,0.202,65913.0,65912.0,1.01999752]
[1718871867826,0.202,65913.0,65912.0,1.03299752]
[1718871868019,0.1,65913.0,65912.0,1.03299752]
[1718871868239,0.202,65913.0,65912.0,1.01899752]
[1718871870114,0.202,65913.0,65912.0,1.03299752]
[1718871871058,0.46865819,65913.0,65912.0,1.03299752]
[1718871871260,0.49245899,65913.0,65912.0,1.03299752]
[1718871871439,3.73545899,65913.0,65912.0,1.03299752]
[1718871871636,3.78616027,65913.0,65912.0,1.03299752]
[1718871872008,3.78616027,65913.0,65912.0,1.00599752]
[1718871872585,3.78616027,65913.0,65912.0,1.01299752]
[1718871873550,3.78616027,65913.0,65912.0,1.02099752]
[1718871875061,3.73616027,65913.0,65912.0,1.02099752]
[1718871875261,3.78616027,65913.0,65912.0,1.02099752]
[1718871877257,3.89928019,65913.0,65912.0,1.02099752]
[1718871878350,3.78616027,65913.0,65912.0,1.02099752]
[1718871878552,3.7976186,65913.0,65912.0,1.02099752]
[1718871879202,3.93336251,65913.0,65912.0,1.02099752]
[1718871879398,4.0228186,65913.0,65912.0,1.02099752]
[1718871880256,4.00365007,65913.0,65912.0,1.02099752]
[1718871880445,4.02444005,65913.0,65912.0,1.02099752]
[1718871881475,4.17700117,65913.0,65912.0,1.02099752]
[1718871881878,4.24234593,65913.0,65912.0,1.02099752]
[1718871884127,4.24234593,65913.0,65912.0,1.01101633]
[1718871884285,4.24234593,65913.0,65912.0,1.00280661]
[1718871884692,4.24234593,65913.0,65912.0,1.00375261]
[1718871885177,4.25234593,65913.0,65912.0,1.00375261]
[1718871885520,4.25821686,65913.0,65912.0,1.00375261]
[1718871887049,4.22668411,65913.0,65912.0,1.00375261]
[1718871887301,4.39587947,65913.0,65912.0,1.00375261]
[1718871887713,4.39624715,65913.0,65912.0,1.00375261]
[1718871887892,4.24521835,65913.0,65912.0,1.00375261]
[1718871888092,3.21821835,65913.0,65912.0,1.00375261]
[1718871888293,1.90294742,65913.0,65912.0,1.00375261]
[1718871888492,1.73375206,65913.0,65912.0,1.00375261]
[1718871888676,1.70150375,65913.0,65912.0,1.00375261]
[1718871888873,1.65694897,65913.0,65912.0,1.00375261]
[1718871889070,1.63615899,65913.0,65912.0,1.00375261]
[1718871889774,1.63608136,65913.0,65912.0,1.00375261]
[1718871890260,1.26486303,65913.0,65912.0,1.06989951]
[1718871891248,1.27708136,65913.0,65912.0,1.06989951]
[1718871892642,1.27708136,65913.0,65912.0,1.00375261]
[1718871896245,1.41301677,65913.0,65912.0,1.00375261]
[1718871896482,1.27708136,65913.0,65912.0,1.00375261]
[1718871900745,1.42964248,65913.0,65912.0,1.00375261]
[1718871901031,1.99743425,65913.0,65912.0,1.00375261]
[1718871901233,2.17188102,65913.0,65912.0,1.00375261]
[1718871902836,2.01896812,65913.0,65912.0,1.00375261]
[1718871903044,2.0176165,65913.0,65912.0,1.00375261]
[1718871903620,2.17053137,65913.0,65912.0,1.00375261]
[1718871903836,2.0176165,65913.0,65912.0,1.00375261]
[1718871904044,1.31313454,65913.0,65912.0,1.00375261]
[1718871904197,1.27708136,65913.0,65912.0,1.00375261]
[1718871904402,0.46146303,65913.0,65912.0,1.32242247]
[1718871904607,0.26386303,65913.0,65912.0,1.50152247]
[1718871905114,0.26386303,65913.0,65912.0,1.40105261]
[1718871908069,0.37808136,65913.0,65912.0,1.00375261]
[1718871908276,0.76918136,65913.0,65912.0,1.00375261]
[1718871908487,0.90511799,65913.0,65912.0,1.00375261]
[1718871908721,5.1809482,65913.0,65912.0,1.00375261]
[1718871908923,5.20113045,65913.0,65912.0,1.00375261]
[1718871909127,5.20113045,65913.0,65912.0,0.99870109]
[1718871909767,5.35369157,65913.0,65912.0,0.99870109]
[1718871909965,5.3695625,65913.0,65912.0,0.99870109]
[1718871910415,5.67950397,65913.0,65912.0,0.99870109]
[1718871910752,5.75567456,65913.0,65912.0,0.99870109]
[1718871911637,5.70197303,65913.0,65912.0,0.99870109]
[1718871912617,5.85485406,65913.0,65912.0,0.99870109]
[1718871913000,5.70197303,65913.0,65912.0,0.99870109]
[1718871913189,5.85485406,65913.0,65912.0,0.99870109]
[1718871913327,5.85491474,65913.0,65912.0,0.99870109]
[1718871914262,5.70197303,65913.0,65912.0,0.99870109]
[1718871917466,5.70283303,65913.0,65912.0,0.99870109]
[1718871921283,5.1975147,65913.0,65912.0,0.99870109]
[1718871921527,5.28420846,65913.0,65912.0,0.99870109]
[1718871921693,5.13108265,65913.0,65912.0,0.99870109]
[1718871922036,5.08490098,65913.0,65912.0,0.99870109]
[1718871922150,5.14330098,65913.0,65912.0,0.99870109]
[1718871922355,5.08085991,65913.0,65912.0,0.99870109]
[1718871922635,4.36321391,65913.0,65912.0,0.99870109]
[1718871923085,4.36321391,65913.0,65912.0,1.00328606]
[1718871924322,4.07026768,65913.0,65912.0,1.00328606]
[1718871926625,4.07026768,65913.0,65912.0,0.99328606]
[1718871927596,4.6937458,65913.0,65912.0,0.99328606]
[1718871927775,4.96356504,65913.0,65912.0,0.99328606]
[1718871928137,4.96356504,65913.0,65912.0,0.98870109]
[1718871929675,4.97356504,65913.0,65912.0,0.96270109]
[1718871929881,5.01700222,65913.0,65912.0,0.94190607]
[1718871930086,4.77401931,65913.0,65912.0,0.9320558]
[1718871931017,4.77398106,65913.0,65912.0,0.9320558]
[1718871931217,4.77398106,65913.0,65912.0,0.92931961]
[1718871932215,5.0588577,65913.0,65912.0,0.92931961]
[1718871932778,5.0004577,65913.0,65912.0,0.92931961]
[1718871932983,5.0588577,65913.0,65912.0,0.92931961]
[1718871933698,5.0588577,65913.0,65912.0,0.90431961]
[1718871935139,5.0588577,65913.0,65912.0,0.89731961]
[1718871935770,5.1088577,65913.0,65912.0,0.13368783]
[1718871935944,5.35524235,65913.0,65912.0,0.11450735]
[1718871936144,5.1318577,65913.0,65912.0,0.11450735]
[1718871938482,5.3549932,65913.0,65912.0,0.11450735]
[1718871938684,5.35498895,65913.0,65912.0,0.11450735]
[1718871939128,5.35498895,65913.0,65912.0,0.09750735]
[1718871939496,1.81898895,65913.0,65912.0,0.09750735]
[1718871939711,6.07263495,65913.0,65912.0,0.08400945]
[1718871940127,5.8495037,65913.0,65912.0,0.08400945]
[1718871940682,5.8495037,65913.0,65912.0,0.03997969]
[1718871941251,5.76417279,65913.0,65912.0,1e-08]
[1718871941455,0.74817376,65912.0,65911.0,0.000946]
[1718871941659,5.48222057,65912.0,65911.0,0.000946]
[1718871941862,5.49362513,65912.0,65911.0,0.000946]
[1718871942085,5.55583934,65912.0,65911.0,0.000946]
[1718871942286,5.84071598,65912.0,65911.0,0.000946]
[1718871942672,5.84071598,65912.0,65911.0,0.009946]
[1718871942870,5.84071598,65912.0,65911.0,0.017946]
[1718871943321,5.84064837,65912.0,65911.0,0.017946]
[1718871944115,5.94064837,65912.0,65911.0,0.017946]
[1718871945430,5.66663068,65912.0,65911.0,0.017946]
[1718871946194,5.56663068,65912.0,65911.0,0.017946]
[1718871946395,5.49034896,65912.0,65911.0,0.017946]
[1718871946803,5.54874896,65912.0,65911.0,0.017946]
[1718871948341,5.20581122,65912.0,65911.0,0.017946]
[1718871948626,5.14741122,65912.0,65911.0,0.231146]
[1718871948952,5.04359701,65912.0,65911.0,0.231146]
[1718871949174,5.04359701,65912.0,65911.0,0.291146]
[1718871949175,4.72841756,65912.0,65911.0,0.291146]
[1718871949386,0.12855797,65912.0,65911.0,0.468246]
[1718871949583,0.01724825,65912.0,65911.0,0.63080712]
[1718871949790,0.09069364,65922.0,65921.0,0.05]
[1718871950005,0.02465894,65926.0,65925.0,0.01]
[1718871950220,0.00086,65926.0,65925.0,0.2382]
[1718871950437,0.00086,65926.0,65925.0,0.44511262]
[1718871953078,0.0767,65926.0,65925.0,0.44511262]
[1718871953502,0.0767,65926.0,65925.0,0.4404]
[1718871953691,0.1777,65926.0,65925.0,0.4474]
[1718871953840,0.1777,65926.0,65925.0,0.45207449]
[1718871954399,0.1777,65926.0,65925.0,0.45707449]
[1718871954614,0.2797,65926.0,65925.0,0.45707449]
[1718871957823,0.28191833,65926.0,65925.0,0.45707449]
[1718871958595,0.33191833,65926.0,65925.0,0.45707449]
[1718871959329,0.33191833,65926.0,65925.0,0.40707449]
[1718871959544,0.33191833,65926.0,65925.0,0.45707449]
[1718871959751,0.33191833,65926.0,65925.0,0.40707449]
[1718871960291,0.33191833,65926.0,65925.0,0.45707449]
[1718871960499,0.3297,65926.0,65925.0,0.45707449]
[1718871960701,0.33191833,65926.0,65925.0,0.02667449]
[1718871960963,0.33191833,65926.0,65925.0,0.01667449]
[1718871961160,4.58556433,65926.0,65925.0,0.01667449]
[1718871961359,0.44322805,65926.0,65925.0,0.012]
[1718871961572,4.69687405,65926.0,65925.0,0.012]
[1718871964606,0.10221833,65921.0,65920.0,0.2]
[1718871964813,0.20421833,65921.0,65920.0,0.2]
[1718871965028,0.20421833,65921.0,65916.0,0.05]
[1718871965029,0.05,65917.0,65916.0,0.05]
[1718871965428,4.303646,65917.0,65916.0,0.05463913]
[1718871965681,0.16130972,65917.0,65916.0,0.05]
[1718871965965,4.303646,65917.0,65916.0,0.05]
[1718871966202,0.16130972,65917.0,65916.0,0.05]
[1718871966433,4.41495572,65917.0,65916.0,0.05]
[1718871966650,4.49079572,65917.0,65916.0,0.05]
[1718871966983,0.23714972,65917.0,65916.0,0.05]
[1718871967220,0.22584,65917.0,65916.0,0.05463913]
[1718871967445,0.22784,65917.0,65916.0,0.07363913]
[1718871970863,0.22784,65917.0,65916.0,0.06607913]
[1718871971911,0.22784,65917.0,65916.0,0.07607913]
[1718871974598,0.22784,65917.0,65916.0,0.12400164]
[1718871974815,0.22784,65917.0,65916.0,0.47827913]